[Event "Live Chess"]
[Site "Chess.com"]
[Date "2024.06.01"]
[Round "-"]
[White "Queensandpawns"]
[Black "Isambard_Thomas"]
[Result "1-0"]
[WhiteElo "2378"]
[BlackElo "2161"]
[TimeControl "300"]
[EndTime "14:14:02 PDT"]
[Termination "Queensandpawns won by resignation"]

1. e4 {[%clk 0:04:58.3]} 1... Nc6 {[%clk 0:04:58.5]} 2. Nc3 {[%clk 0:04:55.7]}
2... e5 {[%clk 0:04:57.3]} 3. Bc4 {[%clk 0:04:53.9]} 3... Nf6 {[%clk 0:04:56.5]}
4. f4 {[%clk 0:04:53.2]} 4... Na5 {[%clk 0:04:53.2]} 5. Bxf7+ {[%clk 0:04:50.3]}
5... Kxf7 {[%clk 0:04:52.2]} 6. fxe5 {[%clk 0:04:50.2]} 6... Ne8 {[%clk
0:04:46.8]} 7. e6+ {[%clk 0:04:47.5]} 7... dxe6 {[%clk 0:04:44.7]} 8. Qh5+
{[%clk 0:04:47.1]} 8... Kg8 {[%clk 0:04:43.4]} 9. Qxa5 {[%clk 0:04:45.8]} 9...
Qh4+ {[%clk 0:04:39.3]} 10. g3 {[%clk 0:04:44.4]} 10... Qf6 {[%clk 0:04:30.1]}
11. Qb5 {[%clk 0:04:40.5]} 11... Bd6 {[%clk 0:04:27.2]} 12. Qxe8+ {[%clk
0:04:38.6]} 1-0

[Event "Live Chess"]
[Site "Chess.com"]
[Date "2024.06.01"]
[Round "-"]
[White "CheckThis4"]
[Black "CCGoodKnightRookie"]
[Result "0-1"]
[WhiteElo "2672"]
[BlackElo "2362"]
[TimeControl "300"]
[EndTime "14:14:06 PDT"]
[Termination "CCGoodKnightRookie won by checkmate"]

1. e4 {[%clk 0:04:55.2]} 1... Nf6 {[%clk 0:04:59.1]} 2. e5 {[%clk 0:04:50.3]}
2... Nd5 {[%clk 0:04:58.5]} 3. d4 {[%clk 0:04:49.1]} 3... d6 {[%clk 0:04:58]} 4.
c4 {[%clk 0:04:48.1]} 4... Nb6 {[%clk 0:04:57.3]} 5. f4 {[%clk 0:04:45.4]} 5...
g6 {[%clk 0:04:55.6]} 6. Nf3 {[%clk 0:04:41.6]} 6... Bg7 {[%clk 0:04:54.6]} 7.
Nc3 {[%clk 0:04:40.7]} 7... O-O {[%clk 0:04:53.8]} 8. Be3 {[%clk 0:04:36.1]}
8... Be6 {[%clk 0:04:52.7]} 9. d5 {[%clk 0:04:33.2]} 9... Bg4 {[%clk 0:04:51.3]}
10. Bd4 {[%clk 0:04:28.2]} 10... N8d7 {[%clk 0:04:48.1]} 11. Qe2 {[%clk
0:04:00.1]} 11... c5 {[%clk 0:04:45.9]} 12. dxc6 {[%clk 0:03:45.8]} 12... bxc6
{[%clk 0:04:45.8]} 13. O-O-O {[%clk 0:03:40.4]} 13... c5 {[%clk 0:04:34.6]} 14.
Bf2 {[%clk 0:03:37.9]} 14... dxe5 {[%clk 0:03:27.5]} 15. h3 {[%clk 0:03:29.9]}
15... Bxf3 {[%clk 0:03:19]} 16. Qxf3 {[%clk 0:03:29.8]} 16... exf4 {[%clk
0:03:16.9]} 17. Qxf4 {[%clk 0:03:21.5]} 17... e5 {[%clk 0:03:05]} 18. Qd2 {[%clk
0:03:06.4]} 18... Qe7 {[%clk 0:03:00.8]} 19. Nd5 {[%clk 0:02:59.5]} 19... Nxd5
{[%clk 0:02:59.1]} 20. cxd5 {[%clk 0:02:59.4]} 20... Rab8 {[%clk 0:02:51.9]} 21.
Bc4 {[%clk 0:02:54.7]} 21... e4 {[%clk 0:02:48.1]} 22. b3 {[%clk 0:02:53.5]}
22... Qe5 {[%clk 0:02:40.9]} 23. Qe2 {[%clk 0:02:28.4]} 23... Qa1+ {[%clk
0:02:34.6]} 24. Kd2 {[%clk 0:02:24.5]} 24... Qc3# {[%clk 0:02:33]} 0-1

[Event "Live Chess"]
[Site "Chess.com"]
[Date "2024.06.01"]
[Round "-"]
[White "Duke_of_Bebington"]
[Black "ACM42"]
[Result "0-1"]
[WhiteElo "1636"]
[BlackElo "2171"]
[TimeControl "300"]
[EndTime "14:14:11 PDT"]
[Termination "ACM42 won by resignation"]

1. e4 {[%clk 0:04:58.1]} 1... e6 {[%clk 0:04:58.2]} 2. d4 {[%clk 0:04:56.6]}
2... d5 {[%clk 0:04:57.6]} 3. Nd2 {[%clk 0:04:56.2]} 3... Nf6 {[%clk 0:04:56.7]}
4. Bd3 {[%clk 0:04:55.1]} 4... c5 {[%clk 0:04:54.9]} 5. c3 {[%clk 0:04:54.5]}
5... Nc6 {[%clk 0:04:53.6]} 6. e5 {[%clk 0:04:53.5]} 6... Nd7 {[%clk 0:04:52.4]}
7. Ne2 {[%clk 0:04:52.9]} 7... f6 {[%clk 0:04:50.6]} 8. Nf4 {[%clk 0:04:46.6]}
8... cxd4 {[%clk 0:04:45]} 9. Qh5+ {[%clk 0:04:40]} 9... Ke7 {[%clk 0:04:43]}
10. Ng6+ {[%clk 0:04:33]} 10... hxg6 {[%clk 0:04:42.9]} 11. Qxh8 {[%clk
0:04:32]} 11... Ndxe5 {[%clk 0:04:37.2]} 12. Bb1 {[%clk 0:04:28.2]} 12... d3
{[%clk 0:04:27.4]} 13. O-O {[%clk 0:04:11.7]} 13... Kf7 {[%clk 0:04:18.5]} 14.
Qh3 {[%clk 0:04:01.4]} 14... Bd6 {[%clk 0:04:08.2]} 15. Nf3 {[%clk 0:04:00.2]}
15... Qb6 {[%clk 0:04:04.4]} 16. Rd1 {[%clk 0:03:45]} 16... Bd7 {[%clk
0:04:00.4]} 17. Bxd3 {[%clk 0:03:42.3]} 17... Nxf3+ {[%clk 0:03:49]} 18. Qxf3
{[%clk 0:03:40.1]} 18... Ne5 {[%clk 0:03:42]} 19. Qe2 {[%clk 0:03:31.4]} 19...
Bc5 {[%clk 0:03:31.8]} 20. b4 {[%clk 0:03:24.5]} 20... Nxd3 {[%clk 0:03:27.3]}
21. Rxd3 {[%clk 0:03:10.3]} 21... Bd6 {[%clk 0:03:22.2]} 22. Be3 {[%clk
0:03:07]} 22... Qc7 {[%clk 0:03:19.7]} 23. Rc1 {[%clk 0:03:01.7]} 23... Bb5
{[%clk 0:03:14.1]} 24. Qd2 {[%clk 0:02:50.4]} 24... Bxd3 {[%clk 0:03:08.8]} 25.
Qxd3 {[%clk 0:02:49.9]} 25... Bxh2+ {[%clk 0:03:08]} 26. Kf1 {[%clk 0:02:47.3]}
26... Be5 {[%clk 0:02:48.1]} 27. Bd4 {[%clk 0:02:42.1]} 27... Rc8 {[%clk
0:02:44.8]} 28. Bxa7 {[%clk 0:02:21]} 28... b6 {[%clk 0:02:42.6]} 0-1

[Event "Live Chess"]
[Site "Chess.com"]
[Date "2024.06.01"]
[Round "-"]
[White "booktrunk"]
[Black "Bradfield133"]
[Result "0-1"]
[WhiteElo "1406"]
[BlackElo "1896"]
[TimeControl "300"]
[EndTime "14:14:13 PDT"]
[Termination "Bradfield133 won by resignation"]

1. e4 {[%clk 0:04:51.6]} 1... c5 {[%clk 0:04:58.4]} 2. d4 {[%clk 0:04:31]} 2...
cxd4 {[%clk 0:04:56.5]} 3. Qxd4 {[%clk 0:04:29.8]} 3... Nf6 {[%clk 0:04:40.7]}
4. f3 {[%clk 0:04:20.9]} 4... Nc6 {[%clk 0:04:37.7]} 5. Qd1 {[%clk 0:04:16.4]}
5... d6 {[%clk 0:04:35.9]} 6. Bd3 {[%clk 0:04:15.2]} 6... g6 {[%clk 0:04:33.6]}
7. Ne2 {[%clk 0:04:13.3]} 7... Bg7 {[%clk 0:04:32.5]} 8. O-O {[%clk 0:04:10.7]}
8... O-O {[%clk 0:04:31.2]} 9. Kh1 {[%clk 0:04:08.7]} 9... d5 {[%clk 0:04:27.8]}
10. exd5 {[%clk 0:04:06.7]} 10... Nxd5 {[%clk 0:04:25.8]} 11. Bc4 {[%clk
0:03:59.7]} 11... Nb6 {[%clk 0:04:00.5]} 12. Qxd8 {[%clk 0:03:55.3]} 12... Rxd8
{[%clk 0:03:58.8]} 13. Bb3 {[%clk 0:03:51.1]} 13... a5 {[%clk 0:03:48.7]} 14. c3
{[%clk 0:03:49.7]} 14... Ne5 {[%clk 0:03:41.3]} 15. Be3 {[%clk 0:03:47.3]} 15...
Nd5 {[%clk 0:03:30.8]} 16. Bd4 {[%clk 0:03:39.7]} 16... Be6 {[%clk 0:03:21.4]}
17. Na3 {[%clk 0:03:35]} 17... Nc6 {[%clk 0:03:05.9]} 18. Bxg7 {[%clk
0:03:31.4]} 18... Kxg7 {[%clk 0:03:05.8]} 19. Rfe1 {[%clk 0:03:10.2]} 19... a4
{[%clk 0:02:52]} 20. Bc2 {[%clk 0:03:07.1]} 20... Nb6 {[%clk 0:02:43.4]} 21. Nb5
{[%clk 0:02:53.9]} 21... Rd2 {[%clk 0:02:24.6]} 22. Be4 {[%clk 0:02:43.5]} 22...
Rxb2 {[%clk 0:02:03]} 23. Nc7 {[%clk 0:02:41.4]} 23... Rc8 {[%clk 0:02:01.7]}
24. Nxe6+ {[%clk 0:02:39.3]} 24... fxe6 {[%clk 0:02:00.2]} 25. Nf4 {[%clk
0:02:35.5]} 25... Nd8 {[%clk 0:01:47.7]} 26. h3 {[%clk 0:02:29.3]} 26... Rxc3
{[%clk 0:01:40.6]} 27. Reb1 {[%clk 0:02:28]} 27... a3 {[%clk 0:01:31.5]} 28.
Rxb2 {[%clk 0:02:25.5]} 28... axb2 {[%clk 0:01:29.3]} 29. Rb1 {[%clk 0:02:24.1]}
29... Rc1+ {[%clk 0:01:28.1]} 30. Kh2 {[%clk 0:02:21.7]} 30... Rxb1 {[%clk
0:01:24.5]} 31. Bxb1 {[%clk 0:02:19.4]} 31... Nc4 {[%clk 0:01:18.9]} 32. Nd3
{[%clk 0:02:17.4]} 32... Na3 {[%clk 0:01:14]} 0-1

[Event "Live Chess"]
[Site "Chess.com"]
[Date "2024.06.01"]
[Round "-"]
[White "Cimon"]
[Black "chessfiction"]
[Result "0-1"]
[WhiteElo "1825"]
[BlackElo "2376"]
[TimeControl "300"]
[EndTime "14:14:23 PDT"]
[Termination "chessfiction won on time"]

1. d4 {[%clk 0:04:57.4]} 1... Nf6 {[%clk 0:04:55.9]} 2. Nf3 {[%clk 0:04:55]}
2... g6 {[%clk 0:04:50.2]} 3. c4 {[%clk 0:04:52.3]} 3... Bg7 {[%clk 0:04:49.3]}
4. g3 {[%clk 0:04:50.7]} 4... O-O {[%clk 0:04:49.2]} 5. Bg2 {[%clk 0:04:48.8]}
5... d6 {[%clk 0:04:48.5]} 6. Nc3 {[%clk 0:04:46]} 6... c6 {[%clk 0:04:48.4]} 7.
O-O {[%clk 0:04:43.6]} 7... a6 {[%clk 0:04:48.3]} 8. Qc2 {[%clk 0:04:27.1]} 8...
Nbd7 {[%clk 0:04:48.2]} 9. e4 {[%clk 0:04:24.8]} 9... e5 {[%clk 0:04:47.4]} 10.
Be3 {[%clk 0:04:18.8]} 10... Ng4 {[%clk 0:04:45.7]} 11. Bd2 {[%clk 0:03:52.7]}
11... exd4 {[%clk 0:04:43.9]} 12. Ne2 {[%clk 0:03:50.1]} 12... c5 {[%clk
0:04:40.1]} 13. b4 {[%clk 0:03:45.9]} 13... Re8 {[%clk 0:04:36.8]} 14. bxc5
{[%clk 0:03:42.9]} 14... dxc5 {[%clk 0:04:36.7]} 15. Bg5 {[%clk 0:03:34.6]}
15... Bf6 {[%clk 0:04:30.5]} 16. Bxf6 {[%clk 0:03:30.8]} 16... Ndxf6 {[%clk
0:04:30.4]} 17. Qd3 {[%clk 0:03:14.6]} 17... Nxe4 {[%clk 0:04:23.6]} 18. Nf4
{[%clk 0:03:12.1]} 18... Bf5 {[%clk 0:04:21]} 19. Qb3 {[%clk 0:03:07.3]} 19...
Rb8 {[%clk 0:03:35.3]} 20. a4 {[%clk 0:02:55.6]} 20... Ngf6 {[%clk 0:03:24.9]}
21. Rad1 {[%clk 0:02:32.4]} 21... Nc3 {[%clk 0:03:23.2]} 22. Rde1 {[%clk
0:02:25]} 22... Be4 {[%clk 0:03:22]} 23. Ng5 {[%clk 0:02:03.7]} 23... Bxg2
{[%clk 0:03:19.3]} 24. Kxg2 {[%clk 0:02:02.3]} 24... Qc7 {[%clk 0:03:08.1]} 25.
h4 {[%clk 0:01:16.6]} 25... Qc6+ {[%clk 0:03:03.4]} 26. f3 {[%clk 0:01:12.2]}
26... Ng4 {[%clk 0:02:54.1]} 27. Kh3 {[%clk 0:01:03.5]} 27... Ne3 {[%clk
0:02:39.2]} 28. Rf2 {[%clk 0:00:52.7]} 28... h6 {[%clk 0:02:34.5]} 29. Ne4
{[%clk 0:00:40.3]} 29... Nxe4 {[%clk 0:02:31.5]} 30. fxe4 {[%clk 0:00:38.6]}
30... Rxe4 {[%clk 0:02:31]} 31. Nd5 {[%clk 0:00:31.5]} 31... Qd7+ {[%clk
0:02:27.9]} 32. Kh2 {[%clk 0:00:21.7]} 32... Ng4+ {[%clk 0:02:25.2]} 33. Kg2
{[%clk 0:00:20.5]} 33... Rxe1 {[%clk 0:02:25.1]} 34. Qf3 {[%clk 0:00:14]} 34...
h5 {[%clk 0:02:09.3]} 35. Qf4 {[%clk 0:00:12.7]} 35... Ne3+ {[%clk 0:02:05.7]}
36. Kh2 {[%clk 0:00:10.2]} 36... Ng4+ {[%clk 0:01:58.8]} 37. Kg2 {[%clk
0:00:08.8]} 37... Rbe8 {[%clk 0:01:56.2]} 38. Qxg4 {[%clk 0:00:05.7]} 38... Qxg4
{[%clk 0:01:52.4]} 39. Nf6+ {[%clk 0:00:04.6]} 39... Kg7 {[%clk 0:01:52.1]} 40.
Nxg4 {[%clk 0:00:03.4]} 40... hxg4 {[%clk 0:01:52]} 0-1

[Event "Live Chess"]
[Site "Chess.com"]
[Date "2024.06.01"]
[Round "-"]
[White "AlexanderMatlak"]
[Black "Tushinskiy"]
[Result "0-1"]
[WhiteElo "2433"]
[BlackElo "2279"]
[TimeControl "300"]
[EndTime "14:14:45 PDT"]
[Termination "Tushinskiy won on time"]

1. c4 {[%clk 0:04:58]} 1... c5 {[%clk 0:04:35.3]} 2. Nf3 {[%clk 0:04:56.5]} 2...
d6 {[%clk 0:04:35.2]} 3. Nc3 {[%clk 0:04:55.3]} 3... Nc6 {[%clk 0:04:35.1]} 4.
g3 {[%clk 0:04:54.8]} 4... Nf6 {[%clk 0:04:35]} 5. Bg2 {[%clk 0:04:54]} 5... g6
{[%clk 0:04:34.2]} 6. O-O {[%clk 0:04:53]} 6... Bg7 {[%clk 0:04:34.1]} 7. d4
{[%clk 0:04:50.2]} 7... cxd4 {[%clk 0:04:32]} 8. Nxd4 {[%clk 0:04:50.1]} 8...
Bd7 {[%clk 0:04:31.5]} 9. b3 {[%clk 0:04:48.9]} 9... O-O {[%clk 0:04:30.2]} 10.
Bb2 {[%clk 0:04:48]} 10... Rc8 {[%clk 0:04:27.3]} 11. Rc1 {[%clk 0:04:46.3]}
11... h5 {[%clk 0:04:24.7]} 12. h3 {[%clk 0:04:41.1]} 12... h4 {[%clk
0:04:21.2]} 13. g4 {[%clk 0:04:40.4]} 13... Nxd4 {[%clk 0:04:16.4]} 14. Qxd4
{[%clk 0:04:38.9]} 14... Nxg4 {[%clk 0:04:14.7]} 15. Qxa7 {[%clk 0:04:38.1]}
15... Ne5 {[%clk 0:04:10.3]} 16. Nd5 {[%clk 0:04:22.8]} 16... Bc6 {[%clk
0:04:06.8]} 17. Kh1 {[%clk 0:03:48.6]} 17... e6 {[%clk 0:04:03.6]} 18. Nf4
{[%clk 0:03:44.2]} 18... Qg5 {[%clk 0:03:57.6]} 19. Qe3 {[%clk 0:03:24.2]} 19...
Nxc4 {[%clk 0:03:44.2]} 20. Rxc4 {[%clk 0:03:16.7]} 20... Bxg2+ {[%clk
0:03:36.6]} 21. Nxg2 {[%clk 0:03:15.2]} 21... Qxe3 {[%clk 0:03:36.5]} 22. Nxe3
{[%clk 0:03:14.2]} 22... Bxb2 {[%clk 0:03:35.5]} 23. Rxh4 {[%clk 0:03:09.8]}
23... Kg7 {[%clk 0:03:26]} 24. Rb4 {[%clk 0:03:04.8]} 24... Rc7 {[%clk
0:03:22.3]} 25. Nc4 {[%clk 0:03:01.8]} 25... Bc3 {[%clk 0:03:20.4]} 26. Rb5
{[%clk 0:02:55.6]} 26... d5 {[%clk 0:03:19.3]} 27. Ne3 {[%clk 0:02:38.3]} 27...
Bd4 {[%clk 0:03:15.8]} 28. Rd1 {[%clk 0:02:14.8]} 28... Bxe3 {[%clk 0:03:14]}
29. fxe3 {[%clk 0:02:14.7]} 29... Rc2 {[%clk 0:03:13.1]} 30. Rxb7 {[%clk
0:02:11.6]} 30... Rxe2 {[%clk 0:03:08]} 31. a4 {[%clk 0:02:06.2]} 31... Rh8
{[%clk 0:03:07]} 32. Rf1 {[%clk 0:01:55.8]} 32... Rxh3+ {[%clk 0:03:05]} 33. Kg1
{[%clk 0:01:54.8]} 33... Rg3+ {[%clk 0:02:56.4]} 34. Kh1 {[%clk 0:01:53.5]}
34... Rgxe3 {[%clk 0:02:55.5]} 35. Rbxf7+ {[%clk 0:01:44.9]} 35... Kh6 {[%clk
0:02:54.2]} 36. R7f3 {[%clk 0:01:44.8]} 36... Re4 {[%clk 0:02:48]} 37. Ra1
{[%clk 0:01:32.5]} 37... Rh4+ {[%clk 0:02:38.4]} 38. Kg1 {[%clk 0:01:31]} 38...
Rg4+ {[%clk 0:02:33.3]} 39. Kf1 {[%clk 0:01:20.4]} 39... Reg2 {[%clk 0:02:18.8]}
40. Ra3 {[%clk 0:01:08.2]} 40... e5 {[%clk 0:02:11.7]} 41. a5 {[%clk 0:01:06.1]}
41... e4 {[%clk 0:02:10.7]} 42. Rf2 {[%clk 0:00:59]} 42... Rg1+ {[%clk 0:02:08]}
43. Ke2 {[%clk 0:00:58]} 43... d4 {[%clk 0:01:59.1]} 44. a6 {[%clk 0:00:50.5]}
44... d3+ {[%clk 0:01:57.7]} 45. Kd2 {[%clk 0:00:39.4]} 45... R4g2 {[%clk
0:01:49.3]} 46. Rxg2 {[%clk 0:00:29.5]} 46... Rxg2+ {[%clk 0:01:48.2]} 47. Ke3
{[%clk 0:00:11.4]} 47... Re2+ {[%clk 0:01:46.5]} 48. Kf4 {[%clk 0:00:11]} 48...
d2 {[%clk 0:01:43]} 49. a7 {[%clk 0:00:10.1]} 49... d1=Q {[%clk 0:01:41.1]} 50.
a8=Q {[%clk 0:00:09.6]} 50... Qf1+ {[%clk 0:01:40]} 51. Ke5 {[%clk 0:00:09]}
51... Qf5+ {[%clk 0:01:35.8]} 52. Kd4 {[%clk 0:00:05.5]} 52... Qf2+ {[%clk
0:01:30]} 53. Ke5 {[%clk 0:00:03.9]} 53... Qc5+ {[%clk 0:01:26.9]} 54. Kf4
{[%clk 0:00:00.6]} 54... Rf2+ {[%clk 0:01:23.5]} 0-1

[Event "Live Chess"]
[Site "Chess.com"]
[Date "2024.06.01"]
[Round "-"]
[White "ProfPoisson"]
[Black "road2gm5000"]
[Result "1-0"]
[WhiteElo "1288"]
[BlackElo "1078"]
[TimeControl "300"]
[EndTime "14:14:53 PDT"]
[Termination "ProfPoisson won by resignation"]

1. e4 {[%clk 0:04:55.1]} 1... c6 {[%clk 0:04:56.9]} 2. d4 {[%clk 0:04:52.5]}
2... d5 {[%clk 0:04:56.8]} 3. exd5 {[%clk 0:04:50.5]} 3... cxd5 {[%clk
0:04:56.7]} 4. c4 {[%clk 0:04:48]} 4... Nf6 {[%clk 0:04:52.9]} 5. Nc3 {[%clk
0:04:45.7]} 5... Nc6 {[%clk 0:04:50.6]} 6. Nf3 {[%clk 0:04:41.5]} 6... g6 {[%clk
0:04:49.7]} 7. Qb3 {[%clk 0:04:36.9]} 7... e6 {[%clk 0:04:40.2]} 8. Bg5 {[%clk
0:04:32.9]} 8... Bg7 {[%clk 0:04:38.4]} 9. O-O-O {[%clk 0:04:27.8]} 9... Qb6
{[%clk 0:04:32]} 10. Qc2 {[%clk 0:04:13.8]} 10... dxc4 {[%clk 0:04:17.6]} 11.
Bxc4 {[%clk 0:04:10.1]} 11... O-O {[%clk 0:04:15.1]} 12. Na4 {[%clk 0:03:51.8]}
12... Qa5 {[%clk 0:04:09.5]} 13. Bd2 {[%clk 0:03:49.2]} 13... Qh5 {[%clk
0:04:03]} 14. Ne5 {[%clk 0:03:34.8]} 14... a6 {[%clk 0:03:48.3]} 15. Be2 {[%clk
0:03:28.5]} 15... Nxe5 {[%clk 0:03:40.5]} 16. Bxh5 {[%clk 0:03:25]} 1-0

[Event "Live Chess"]
[Site "Chess.com"]
[Date "2024.06.01"]
[Round "-"]
[White "kingside_rook"]
[Black "AndrewBak1"]
[Result "0-1"]
[WhiteElo "1949"]
[BlackElo "1870"]
[TimeControl "300"]
[EndTime "14:15:30 PDT"]
[Termination "AndrewBak1 won by resignation"]

1. e4 {[%clk 0:04:59.2]} 1... c5 {[%clk 0:04:57.7]} 2. Nf3 {[%clk 0:04:58.3]}
2... Nc6 {[%clk 0:04:55.9]} 3. Bb5 {[%clk 0:04:57.3]} 3... e6 {[%clk 0:04:53.9]}
4. O-O {[%clk 0:04:56.4]} 4... Nge7 {[%clk 0:04:51.8]} 5. c3 {[%clk 0:04:55.8]}
5... a6 {[%clk 0:04:50.8]} 6. Ba4 {[%clk 0:04:54.5]} 6... b5 {[%clk 0:04:49.3]}
7. Bc2 {[%clk 0:04:52.2]} 7... d5 {[%clk 0:04:48.9]} 8. d4 {[%clk 0:04:51]} 8...
cxd4 {[%clk 0:04:42.5]} 9. Nxd4 {[%clk 0:04:49.5]} 9... Nxd4 {[%clk 0:04:41.2]}
10. Qxd4 {[%clk 0:04:49.4]} 10... Bb7 {[%clk 0:04:39.3]} 11. e5 {[%clk
0:04:43.2]} 11... Nc6 {[%clk 0:04:34.2]} 12. Qf4 {[%clk 0:04:42.8]} 12... Qc7
{[%clk 0:04:17.8]} 13. Re1 {[%clk 0:04:41.9]} 13... Ne7 {[%clk 0:03:44.6]} 14.
a4 {[%clk 0:04:38.9]} 14... Ng6 {[%clk 0:03:35.9]} 15. Qg3 {[%clk 0:04:37.9]}
15... h5 {[%clk 0:03:28.8]} 16. Bxg6 {[%clk 0:04:36]} 16... fxg6 {[%clk
0:03:26.1]} 17. Qxg6+ {[%clk 0:04:35.9]} 17... Qf7 {[%clk 0:03:24.7]} 18. Qf6
{[%clk 0:04:35.3]} 18... gxf6 {[%clk 0:03:22]} 0-1

[Event "Live Chess"]
[Site "Chess.com"]
[Date "2024.06.01"]
[Round "-"]
[White "NeilDruggan73"]
[Black "gmnorfolk"]
[Result "0-1"]
[WhiteElo "1750"]
[BlackElo "2079"]
[TimeControl "300"]
[EndTime "14:16:11 PDT"]
[Termination "gmnorfolk won by checkmate"]

1. d4 {[%clk 0:04:57.5]} 1... Nf6 {[%clk 0:04:58.1]} 2. Bg5 {[%clk 0:04:55.1]}
2... d5 {[%clk 0:04:56.5]} 3. Bxf6 {[%clk 0:04:53.2]} 3... gxf6 {[%clk
0:04:54.4]} 4. e3 {[%clk 0:04:52.1]} 4... c5 {[%clk 0:04:50.9]} 5. dxc5 {[%clk
0:04:44.1]} 5... e5 {[%clk 0:04:49.2]} 6. Nf3 {[%clk 0:04:42]} 6... Bxc5 {[%clk
0:04:46.4]} 7. c3 {[%clk 0:04:36.9]} 7... Nc6 {[%clk 0:04:44]} 8. Nbd2 {[%clk
0:04:33.3]} 8... Rg8 {[%clk 0:04:42.1]} 9. Nb3 {[%clk 0:04:32.9]} 9... Bb6
{[%clk 0:04:40.4]} 10. g3 {[%clk 0:04:31.6]} 10... Bg4 {[%clk 0:04:38.5]} 11.
Be2 {[%clk 0:04:28.5]} 11... Qd7 {[%clk 0:04:35.3]} 12. a4 {[%clk 0:04:24.4]}
12... O-O-O {[%clk 0:04:31.3]} 13. a5 {[%clk 0:04:22.4]} 13... Bc7 {[%clk
0:04:30.3]} 14. a6 {[%clk 0:04:18.4]} 14... b6 {[%clk 0:04:28.6]} 15. O-O {[%clk
0:04:02.2]} 15... Bh3 {[%clk 0:04:26.1]} 16. Re1 {[%clk 0:03:58.4]} 16... h5
{[%clk 0:04:21.8]} 17. Bf1 {[%clk 0:03:55.7]} 17... Bg4 {[%clk 0:04:16.5]} 18.
Be2 {[%clk 0:03:50.8]} 18... h4 {[%clk 0:04:02.1]} 19. Nxh4 {[%clk 0:03:46.9]}
19... Bh3 {[%clk 0:03:57.7]} 20. Qc2 {[%clk 0:03:40.8]} 20... Rh8 {[%clk
0:03:52.1]} 21. Nf3 {[%clk 0:03:11.6]} 21... e4 {[%clk 0:03:50.3]} 22. Nfd4
{[%clk 0:03:02.6]} 22... Bg2 {[%clk 0:03:39.1]} 23. Bf1 {[%clk 0:02:37.9]} 23...
Bxf1 {[%clk 0:03:18.1]} 24. Kxf1 {[%clk 0:02:36.1]} 24... Rxh2 {[%clk
0:03:14.9]} 25. Nxc6 {[%clk 0:02:10.9]} 25... Qg4 {[%clk 0:02:55.4]} 26. Nxa7+
{[%clk 0:01:50.7]} 26... Kb8 {[%clk 0:02:30.2]} 27. Qd1 {[%clk 0:00:40.5]} 27...
Rh1+ {[%clk 0:02:26.2]} 28. Kg2 {[%clk 0:00:38.5]} 28... Qh3# {[%clk 0:02:25]}
0-1

[Event "Live Chess"]
[Site "Chess.com"]
[Date "2024.06.01"]
[Round "-"]
[White "jimwad"]
[Black "jellhhggffhjjjjjj"]
[Result "0-1"]
[WhiteElo "1280"]
[BlackElo "410"]
[TimeControl "300"]
[EndTime "14:16:17 PDT"]
[Termination "jellhhggffhjjjjjj won by resignation"]

1. d4 {[%clk 0:04:57.4]} 1... e5 {[%clk 0:04:58.2]} 2. dxe5 {[%clk 0:04:55.1]}
2... Nc6 {[%clk 0:04:57]} 3. Nf3 {[%clk 0:04:53.9]} 3... d6 {[%clk 0:04:55.1]}
4. exd6 {[%clk 0:04:51.9]} 4... Bxd6 {[%clk 0:04:53.8]} 5. Nc3 {[%clk
0:04:50.3]} 5... Bg4 {[%clk 0:04:49]} 6. h3 {[%clk 0:04:47]} 6... Bf5 {[%clk
0:04:41.3]} 7. e3 {[%clk 0:04:43.9]} 7... Nb4 {[%clk 0:04:28.4]} 8. Bd3 {[%clk
0:04:38.1]} 8... Nxd3+ {[%clk 0:04:25.5]} 9. cxd3 {[%clk 0:04:36.8]} 9... Nf6
{[%clk 0:04:22.5]} 10. O-O {[%clk 0:04:34.9]} 10... Qd7 {[%clk 0:04:19.7]} 11.
g4 {[%clk 0:04:11.6]} 11... Bxg4 {[%clk 0:04:15.6]} 12. hxg4 {[%clk 0:04:09.7]}
12... Qxg4+ {[%clk 0:04:14.2]} 13. Kh1 {[%clk 0:04:06.6]} 13... O-O-O {[%clk
0:03:59.7]} 14. Ne4 {[%clk 0:03:53.3]} 14... Nxe4 {[%clk 0:03:54.2]} 15. dxe4
{[%clk 0:03:49.6]} 15... Qh3+ {[%clk 0:03:51.2]} 16. Kg1 {[%clk 0:03:46.3]}
16... g5 {[%clk 0:03:43.2]} 17. e5 {[%clk 0:03:39]} 17... g4 {[%clk 0:03:39.1]}
18. Ng5 {[%clk 0:03:28.6]} 18... Qh4 {[%clk 0:03:18.9]} 19. Nxf7 {[%clk
0:03:13.4]} 19... Bxe5 {[%clk 0:03:11.4]} 20. Qxd8+ {[%clk 0:03:07.5]} 20...
Rxd8 {[%clk 0:03:07.7]} 21. Nxe5 {[%clk 0:02:58.6]} 21... Rg8 {[%clk 0:03:01.3]}
22. e4 {[%clk 0:02:38.7]} 22... g3 {[%clk 0:02:53.1]} 23. Kg2 {[%clk 0:01:59.9]}
23... gxf2+ {[%clk 0:02:50.7]} 24. Kf3 {[%clk 0:01:57.8]} 24... Rf8+ {[%clk
0:02:38.1]} 25. Ke2 {[%clk 0:01:56.2]} 25... Qh5+ {[%clk 0:02:34.4]} 26. Kd3
{[%clk 0:01:50.6]} 26... Qxe5 {[%clk 0:02:32.4]} 27. Be3 {[%clk 0:01:46.8]}
27... Re8 {[%clk 0:02:29]} 28. Bxf2 {[%clk 0:01:37.6]} 28... Qxe4+ {[%clk
0:02:26.9]} 29. Kc3 {[%clk 0:01:36.2]} 29... Qf3+ {[%clk 0:02:22.3]} 30. Kc2
{[%clk 0:01:33.6]} 30... Re6 {[%clk 0:02:17.7]} 31. Rad1 {[%clk 0:01:26.2]}
31... Rc6+ {[%clk 0:02:14.7]} 32. Kb1 {[%clk 0:01:24.9]} 32... Qe4+ {[%clk
0:02:11.5]} 33. Ka1 {[%clk 0:01:22.9]} 33... b6 {[%clk 0:02:00.5]} 34. Bg3
{[%clk 0:01:17.8]} 34... Kb7 {[%clk 0:01:50.2]} 35. Rfe1 {[%clk 0:01:11.7]}
35... Qf3 {[%clk 0:01:38.8]} 36. Bh4 {[%clk 0:01:07.5]} 36... Rc5 {[%clk
0:01:33]} 37. Be7 {[%clk 0:01:04.8]} 37... Ra5 {[%clk 0:01:27.9]} 38. Rf1 {[%clk
0:00:53.3]} 38... Qc6 {[%clk 0:01:24.3]} 39. Bf6 {[%clk 0:00:46.8]} 39... Qa4
{[%clk 0:01:21.6]} 40. a3 {[%clk 0:00:44.8]} 40... Qb3 {[%clk 0:01:19.2]} 41.
Rb1 {[%clk 0:00:26.9]} 41... b5 {[%clk 0:01:17.5]} 42. Bc3 {[%clk 0:00:22.3]}
42... b4 {[%clk 0:01:13.2]} 43. Bxb4 {[%clk 0:00:19.4]} 43... Qxb4 {[%clk
0:01:11.6]} 0-1